fUST/lending_fUST_20240414
["ID","MTS","AMOUNT","RATE_DAILY","PERIOD"]
[322535370,1713040737795,-500.0,0.00076712,120]
[322535371,1713040737819,-500.0,0.00076712,120]
[322535372,1713040737843,-500.0,0.00076712,120]
[322535373,1713040737869,-500.0,0.00076712,120]
[322535374,1713040737894,-500.0,0.00076712,120]
[322535375,1713040737918,-500.0,0.00076712,120]
[322535376,1713040737942,-500.0,0.00076712,120]
[322535377,1713040737965,-500.0,0.00076712,120]
[322535378,1713040737992,-500.0,0.00076712,120]
[322535379,1713040738017,-500.0,0.00076712,120]
[322535380,1713040738040,-514.53172071,0.00076712,120]
[322535381,1713040738064,-2574.52,0.00076712,120]
[322535382,1713040738088,-276.5024527,0.00076712,120]
[322535383,1713040738112,-500.0,0.00076712,120]
[322535384,1713040738140,-500.0,0.00076712,120]
[322535385,1713040738163,-500.0,0.00076712,120]
[322535386,1713040738190,-500.0,0.00076712,21]
[322535387,1713040738214,-500.0,0.00076712,120]
[322535388,1713040738237,-500.0,0.00076712,120]
[322535389,1713040738262,-500.0,0.00076712,120]
[322535390,1713040738286,-500.0,0.00076712,120]
[322535391,1713040738310,-500.0,0.00076712,120]
[322535392,1713040738336,-500.0,0.00076712,120]
[322535393,1713040738360,-2251.27,0.00076712,120]
[322535394,1713040738388,-500.0,0.00076712,120]
[322535395,1713040738411,-500.0,0.00076712,120]
[322535396,1713040738434,-500.0,0.00076712,120]
[322535397,1713040738460,-500.0,0.00076712,120]
[322535398,1713040738484,-510.463614,0.00076712,120]
[322535399,1713040738509,-501.62064787,0.00076712,120]
[322535400,1713040738534,-500.0,0.00076712,120]
[322535401,1713040738557,-500.0,0.00076712,120]
[322535402,1713040738583,-500.0,0.00076712,120]
[322535403,1713040738610,-500.0,0.00076712,120]
[322535404,1713040738639,-500.0,0.00076712,120]
[322535405,1713040738663,-500.0,0.00076712,120]
[322535406,1713040738687,-516.16491402,0.00076712,120]
[322535407,1713040738713,-653.03,0.00076712,120]
[322535408,1713040738736,-526.3860513,0.00076712,120]
[322535409,1713040738760,-500.0,0.00076712,120]
[322535410,1713040738783,-500.0,0.00076712,120]
[322535411,1713040738807,-500.0,0.00076712,120]
[322535412,1713040738830,-500.0,0.00076712,120]
[322535413,1713040738854,-500.0,0.00076712,120]
[322535414,1713040738879,-500.0,0.00076712,120]
[322535415,1713040738903,-500.0,0.00076712,120]
[322535416,1713040738926,-500.0,0.00076712,120]
[322535417,1713040738950,-500.0,0.00076712,120]
[322535418,1713040738973,-500.0,0.00076712,120]
[322535419,1713040738998,-500.0,0.00076712,120]
[322535420,1713040739022,-500.0,0.00076712,120]
[322535421,1713040739046,-500.0,0.00076712,120]
[322535422,1713040739069,-500.0,0.00076712,120]
[322535423,1713040739093,-500.0,0.00076712,120]
[322535424,1713040739121,-500.0,0.00076712,120]
[322535425,1713040739145,-500.0,0.00076712,120]
[322535426,1713040739168,-521.22461762,0.00076712,120]
[322535427,1713040739193,-861.81,0.00076712,120]
[322535428,1713040739216,-500.0,0.00076712,60]
[322535429,1713040739240,-500.0,0.00076712,120]
[322535430,1713040739264,-500.0,0.00076712,120]
[322535431,1713040739289,-500.0,0.00076712,120]
[322535432,1713040739313,-500.0,0.00076712,120]
[322535433,1713040739337,-586.46,0.00076712,120]
[322535434,1713040739368,-500.0,0.00076712,120]
[322535435,1713040739391,-500.0,0.00076712,120]
[322535436,1713040739415,-500.0,0.00076712,120]
[322535437,1713040739443,-500.0,0.00076712,120]
[322535438,1713040739468,-269.49487867,0.00076712,120]
[322535439,1713040739492,-500.0,0.00076712,120]
[322535440,1713040739516,-421.52702997,0.00076712,120]
[322535441,1713040739542,-500.0,0.00076712,120]
[322535442,1713040739567,-500.0,0.00076712,120]
[322535443,1713040739590,-500.0,0.00076712,120]
[322535444,1713040739615,-500.0,0.00076712,120]
[322535445,1713040739753,-500.0,0.00076712,120]
[322535446,1713040739778,-532.90138916,0.00076712,120]
[322535447,1713040739803,-500.0,0.00076712,120]
[322535448,1713040739826,-500.0,0.00076712,120]
[322535449,1713040739850,-500.0,0.00076712,120]
[322535450,1713040739877,-524.03462762,0.00076712,120]
[322535451,1713040739900,-500.0,0.00076712,120]
[322535452,1713040739925,-500.0,0.00076712,120]
[322535453,1713040739950,-1014.52,0.00076712,120]
[322535454,1713040739974,-500.0,0.00076712,120]
[322535455,1713040739999,-500.0,0.00076712,120]
[322535456,1713040740023,-500.0,0.00076712,120]
[322535457,1713040740049,-500.0,0.00076712,120]
[322535458,1713040740075,-500.0,0.00076712,120]
[322535459,1713040740100,-500.0,0.00076712,120]
[322535460,1713040740128,-500.0,0.00076712,120]
[322535461,1713040740154,-500.0,0.00076712,120]
[322535462,1713040740179,-500.0,0.00076712,120]
[322535463,1713040740203,-500.0,0.00076712,120]
[322535464,1713040740226,-500.0,0.00076712,120]
[322535465,1713040740250,-639.96,0.00076712,120]
[322535466,1713040740274,-500.0,0.00076712,120]
[322535467,1713040740299,-500.0,0.00076712,120]
[322535468,1713040740323,-2500.0,0.00076712,120]
[322535469,1713040740382,237.61407729,0.00054792,4]
[322535470,1713040740411,1194.39665957,0.00076708,7]
[322535471,1713040740447,500.0,0.00054794,120]
[322535472,1713040740477,514.44,0.00076712,120]
[322535473,1713040741006,465.13392178,0.00076711,7]
[322535474,1713040741357,500.0,0.00054794,120]
[322535475,1713040741672,500.0,0.00076712,120]
[322535476,1713040741711,500.0,0.00054794,120]
[322535477,1713040741968,500.0,0.00076712,120]
[322535478,1713040747232,254.90994942,0.00054794,120]
[322535479,1713040749121,500.0,0.00054794,120]
[322535480,1713040749666,318.31653243,0.00054794,120]
[322535481,1713040750730,718.86615281,0.00054694,2]
[322535482,1713040751145,500.0,0.00054794,120]
[322535483,1713040751459,500.0,0.00076712,120]
[322535484,1713040752240,698.81,0.00054794,120]
[322535485,1713040752849,698.81,0.00076712,120]
[322535486,1713040753221,58.29785646,0.0005,30]
[322535494,1713040921570,-818.00051902,0.00033422,2]
[322535495,1713040921597,-484.4558624,0.00033423,2]
[322535496,1713040921621,-165.5763944,0.00042227,2]
[322535497,1713040921645,-543.83485189,0.00044999,4]
[322535498,1713040921672,-1241.84783223,0.00045,4]
[322535499,1713040921696,-2701.971356,0.00049994,4]
[322535500,1713040921722,-426.0,0.00049994,10]
[322535501,1713040921755,-550.0,0.00049994,15]
[322535502,1713040921779,-8524.31651613,0.00049995,120]
[322535503,1713040921804,-1759.1339403,0.00049996,4]
[322535504,1713040921828,-465.13392178,0.00049996,4]
[322535505,1713040921853,-2337.30031724,0.00049997,2]
[322535506,1713040921879,-681.9140548,0.00049997,2]
[322535507,1713040921904,-1061.68591961,0.00049998,4]
[322535508,1713040921930,-461.70391052,0.00049999,4]
[322535509,1713040921955,-206.73194532,0.0005,30]
[322535510,1713040921980,-318.31653243,0.0005,120]
[322535511,1713040922017,-1158.92348694,0.0005,4]
[322535512,1713040922042,-1021.70785564,0.0005,7]
[322535513,1713040922067,-309.02230414,0.0005,4]
[322535514,1713040922093,-869.15613176,0.00054694,2]
[322535515,1713040922118,-239.3999795,0.00054788,3]
[322535516,1713040922143,-210.38651295,0.00054788,2]
[322535517,1713040922167,-162.61767324,0.00054788,4]
[322535518,1713040922192,-171.22780826,0.00054788,4]
[322535519,1713040922218,-675.98060973,0.00054789,4]
[322535520,1713040922248,-294.15620968,0.0005479,2]
[322535521,1713040922278,-624.51294238,0.0005479,4]
[322535522,1713040922302,-283.99441796,0.0005479,4]
[322535523,1713040922329,-1806.687265,0.0005479,4]
[322535524,1713040922354,-173.67326272,0.0005479,4]
[322535525,1713040922381,-155.21758575,0.0005479,4]
[322535526,1713040922406,-2029.35454976,0.0005479,4]
[322535527,1713040922431,-241.96307711,0.0005479,4]
[322535528,1713040922457,-430.88976759,0.0005479,4]
[322535529,1713040922481,-283.37478097,0.00054794,120]
[322535530,1713040922511,-500.0,0.00054794,120]
[322535531,1713040922537,-598.61,0.00054794,120]
[322535532,1713040922570,-500.0,0.00054794,120]
[322535533,1713040922598,-500.0,0.00054794,120]
[322535534,1713040922625,-503.69638039,0.00054794,120]
[322535535,1713040922654,-345.51279381,0.00054794,120]
[322535536,1713040922682,-500.0,0.00054794,120]
[322535537,1713040922710,-500.0,0.00054794,120]
[322535538,1713040922743,-500.0,0.00054794,120]
[322535539,1713040922775,-500.0,0.00054794,120]
[322535540,1713040922802,-500.0,0.00054794,120]
[322535541,1713040922828,-500.0,0.00054794,120]
[322535542,1713040922856,-500.0,0.00054794,120]
[322535543,1713040922883,-500.0,0.00054794,120]
[322535544,1713040922908,-500.0,0.00054794,120]
[322535545,1713040922939,-500.0,0.00054794,120]
[322535546,1713040922968,-500.0,0.00054794,120]
[322535547,1713040923000,-500.0,0.00054794,120]
[322535548,1713040923027,-500.0,0.00054794,120]
[322535549,1713040923054,-500.0,0.00054794,120]
[322535550,1713040923086,-500.0,0.00054794,120]
[322535551,1713040923114,-2402.62,0.00054794,120]
[322535552,1713040923147,-500.0,0.00054794,120]
[322535553,1713040923173,-260.33821339,0.00054794,120]
[322535554,1713040923201,-500.0,0.00054794,21]
[322535555,1713040923228,-500.0,0.00054794,120]
[322535556,1713040923265,-500.0,0.00054794,120]
[322535557,1713040923294,-500.0,0.00054794,120]
[322535558,1713040923324,-500.0,0.00054794,120]
[322535559,1713040923351,-500.0,0.00054794,120]
[322535560,1713040923378,-500.0,0.00054794,120]
[322535561,1713040923406,-500.0,0.00054794,120]
[322535562,1713040923434,-527.10760131,0.00054794,120]
[322535563,1713040923461,-500.0,0.00054794,120]
[322535564,1713040923486,-500.0,0.00054794,120]
[322535565,1713040923515,-500.0,0.00054794,120]
[322535566,1713040923540,-500.0,0.00054794,120]
[322535567,1713040923570,-301.58630501,0.00054794,120]
[322535568,1713040923595,-301.24202148,0.00054794,120]
[322535569,1713040923620,-500.0,0.00054794,120]
[322535570,1713040923646,-2063.67,0.00054794,120]
[322535571,1713040923671,-500.0,0.00054794,120]
[322535572,1713040923696,-500.0,0.00054794,120]
[322535573,1713040923720,-500.0,0.00054794,120]
[322535574,1713040923750,-500.0,0.00054794,120]
[322535575,1713040923776,-500.0,0.00054794,120]
[322535576,1713040923802,-500.0,0.00054794,120]
[322535577,1713040923829,-537.59,0.00054794,120]
[322535578,1713040923855,-500.0,0.00054794,120]
[322535579,1713040923879,-500.0,0.00054794,120]
[322535580,1713040923904,-500.0,0.00054794,120]
[322535581,1713040923929,-259.23441945,0.0007397,7]
[322535582,1713040923953,-500.0,0.00076711,2]
[322535583,1713040923978,-500.0,0.00076711,120]
[322535584,1713040924006,-500.0,0.00076711,120]
[322535585,1713040924031,-500.0,0.00076712,120]
[322535586,1713040924057,-598.61,0.00076712,120]
[322535587,1713040924083,-500.0,0.00076712,120]
[322535588,1713040924110,-330.19348949,0.00076712,120]
[322535589,1713040924136,-500.0,0.00076712,120]
[322535590,1713040924163,-500.0,0.00076712,120]
[322535591,1713040924188,-508.9012167,0.00076712,120]
[322535592,1713040924214,-500.0,0.00076712,120]
[322535593,1713040924246,-500.0,0.00076712,120]
[322535594,1713040924274,-500.0,0.00076712,120]
[322535595,1713040924408,-500.0,0.00076712,120]
[322535596,1713040924434,-378.99096743,0.00076712,120]
[322535597,1713040924458,-500.0,0.00076712,120]
[322535598,1713040924483,-500.0,0.00076712,120]
[322535599,1713040924512,-500.0,0.00076712,120]
[322535600,1713040924536,-500.0,0.00076712,120]
[322535601,1713040924563,-500.0,0.00076712,120]
[322535602,1713040924588,-2402.62,0.00076712,120]
[322535603,1713040924615,-500.0,0.00076712,120]
[322535604,1713040924639,-499.68616725,0.00076712,120]
[322535605,1713040924664,-500.0,0.00076712,21]
[322535606,1713040924693,-500.0,0.00076712,120]
[322535607,1713040924720,-500.0,0.00076712,120]
[322535608,1713040924753,-500.0,0.00076712,120]
[322535609,1713040924779,-500.0,0.00076712,120]
[322535610,1713040924805,-500.0,0.00076712,120]
[322535611,1713040924830,-500.0,0.00076712,120]
[322535612,1713040924856,-504.50110514,0.00076712,120]
[322535613,1713040924881,-500.0,0.00076712,120]
[322535614,1713040924907,-2063.67,0.00076712,120]
[322535615,1713040924930,-500.0,0.00076712,120]
[322535616,1713040924956,-500.0,0.00076712,120]
[322535617,1713040924979,-500.0,0.00076712,120]
[322535618,1713040925010,-500.0,0.00076712,120]
[322535619,1713040925044,-500.0,0.00076712,120]
[322535620,1713040925072,-537.59,0.00076712,120]
[322535621,1713040925101,-500.0,0.00076712,120]
[322535622,1713040925130,-500.0,0.00076712,120]
[322535623,1713040925157,-500.0,0.00076712,120]
[322535624,1713040925219,2337.30031724,0.00044998,2]
[322535625,1713040928413,151.0,0.0005,120]
[322535626,1713040929671,500.0,0.00054794,120]
[322535627,1713040929702,789.99,0.00054794,120]
[322535628,1713040929951,569.21,0.00076712,120]
[322535629,1713040929981,789.99,0.00076712,120]
[322535630,1713040932356,500.0,0.00054794,120]
[322535631,1713040935584,1158.92348694,0.0005,4]
[322535632,1713040938584,500.0,0.00076711,120]
[322535633,1713040942213,432.07972749,0.0005,120]
[322535634,1713040943727,500.0,0.00054794,120]
[322535635,1713040944012,500.0,0.00076712,120]
[322535636,1713040944143,500.0,0.00054794,120]
[322535637,1713040944403,440.22633036,0.00076712,120]
[322535638,1713040948712,500.0,0.00054794,60]
[322535639,1713040948787,500.0,0.00054794,120]
[322535640,1713040948980,500.0,0.00076712,60]
[322535641,1713040949062,500.0,0.00076712,120]
[322535642,1713040951571,1158.92348694,0.0005,4]
[322535643,1713040956170,356.21587503,0.00054794,120]
[322535648,1713041023429,-305.11489757,0.000449,7]
[322535649,1713041023458,-681.9140548,0.00054793,2]
[322535650,1713041023491,-143.78412497,0.00054794,120]
[322535651,1713041023520,-500.0,0.00054794,120]
[322535652,1713041023548,-500.0,0.00054794,120]
[322535653,1713041023586,-500.0,0.00054794,120]
[322535654,1713041023618,-500.0,0.00054794,120]
[322535655,1713041023648,-500.0,0.00054794,120]
[322535656,1713041023682,-500.0,0.00054794,120]
[322535657,1713041023711,-500.0,0.00054794,120]
[322535658,1713041023741,-500.0,0.00054794,120]
[322535659,1713041023772,-500.0,0.00054794,120]
[322535660,1713041023805,-500.0,0.00054794,120]
[322535661,1713041023833,-929.97,0.00054794,120]
[322535662,1713041023864,-1891.69,0.00054794,120]
[322535663,1713041023893,-500.0,0.00054794,120]
[322535664,1713041023926,-500.0,0.00054794,120]
[322535665,1713041023956,-500.0,0.00054794,120]
[322535666,1713041023983,-394.51755558,0.00054794,120]
[322535667,1713041024010,-500.0,0.00054794,120]
[322535668,1713041024035,-665.04,0.00054794,120]
[322535669,1713041024064,-1583.22054627,0.0007671,7]
[322535670,1713041024091,-520.6976971,0.00076711,7]
[322535671,1713041024118,-9589.85608064,0.00076711,120]
[322535672,1713041024145,-2500.0,0.00076711,120]
[322535673,1713041024173,-500.0,0.00076711,120]
[322535674,1713041024201,-500.0,0.00076711,120]
[322535675,1713041024229,-717.51,0.00076711,120]
[322535676,1713041024263,-500.0,0.00076712,120]
[322535677,1713041024289,-500.0,0.00076712,120]
[322535678,1713041024320,-500.0,0.00076712,120]
[322535679,1713041024346,-500.0,0.00076712,120]
[322535680,1713041024371,-500.0,0.00076712,120]
[322535681,1713041024401,-500.0,0.00076712,120]
[322535682,1713041024430,-500.0,0.00076712,120]
[322535683,1713041024456,-500.0,0.00076712,120]
[322535684,1713041024482,-500.0,0.00076712,120]
[322535685,1713041024509,-500.0,0.00076712,120]
[322535686,1713041024536,-929.97,0.00076712,120]
[322535687,1713041024567,-1891.69,0.00076712,120]
[322535688,1713041024593,-538.12,0.00076712,120]
[322535689,1713041024622,-500.0,0.00076712,120]
[322535690,1713041024647,-665.04,0.00076712,120]
[322535691,1713041025520,2337.30031724,0.00054792,2]
[322535712,1713041234539,-681.9140548,0.00054693,2]
[322535713,1713041234572,-177.58810919,0.00054694,14]
[322535714,1713041234600,-1407.30715224,0.00054788,4]
[322535715,1713041234629,-2337.30031724,0.00054789,2]
[322535716,1713041234656,-465.13392178,0.0005479,4]
[322535717,1713041234684,-8524.31651613,0.0005479,120]
[322535718,1713041234712,-6026.84989799,0.00054793,15]
[322535719,1713041234745,-500.0,0.00054794,120]
[322535720,1713041234772,-500.0,0.00054794,120]
[322535721,1713041234799,-500.0,0.00054794,120]
[322535722,1713041234824,-500.0,0.00054794,120]
[322535723,1713041234849,-500.0,0.00054794,120]
[322535724,1713041234874,-500.0,0.00054794,120]
[322535725,1713041234899,-500.0,0.00054794,120]
[322535726,1713041234924,-500.0,0.00054794,120]
[322535727,1713041234951,-500.0,0.00054794,120]
[322535728,1713041234976,-500.0,0.00054794,120]
[322535729,1713041235007,-569.56,0.00054794,120]
[322535730,1713041235035,-500.0,0.00054794,120]
[322535731,1713041235061,-2559.02,0.00054794,120]
[322535732,1713041235086,-500.0,0.00054794,120]
[322535733,1713041235113,-500.0,0.00054794,120]
[322535734,1713041235138,-500.0,0.00054794,120]
[322535735,1713041235162,-502.28127508,0.00054794,120]
[322535736,1713041235186,-500.0,0.00054794,120]
[322535737,1713041235211,-500.0,0.00054794,120]
[322535738,1713041235244,-500.0,0.00054794,120]
[322535739,1713041235269,-544.06039581,0.00054794,120]
[322535740,1713041235294,-500.0,0.00054794,21]
[322535741,1713041235320,-500.0,0.00054794,120]
[322535742,1713041235347,-501.24410365,0.00054794,120]
[322535743,1713041235374,-500.0,0.00054794,120]
[322535744,1713041235401,-500.0,0.00054794,120]
[322535745,1713041235428,-500.0,0.00054794,120]
[322535746,1713041235453,-519.05745472,0.00054794,120]
[322535747,1713041235482,-502.63757926,0.00054794,120]
[322535748,1713041235517,-1035.63419248,0.00054794,14]
[322535749,1713041235545,-500.0,0.00054794,120]
[322535750,1713041235574,-500.0,0.00054794,120]
[322535751,1713041235601,-500.0,0.00054794,120]
[322535752,1713041235631,-500.0,0.00054794,120]
[322535754,1713041235663,-417.69517336,0.00054794,120]
[322535755,1713041235694,-599.36184358,0.00054794,120]
[322535756,1713041235725,-724.16,0.00054794,120]
[322535757,1713041235762,-500.0,0.00054794,120]
[322535758,1713041235792,-500.0,0.00054794,120]
[322535759,1713041235818,-500.0,0.00054794,120]
[322535760,1713041235844,-500.0,0.00054794,120]
[322535761,1713041235870,-500.0,0.00054794,120]
[322535763,1713041235895,-503.4515301,0.00054794,120]
[322535764,1713041235923,-500.0,0.00054794,120]
[322535765,1713041235950,-500.0,0.00054794,120]
[322535766,1713041235975,-500.0,0.00054794,120]
[322535767,1713041236007,-500.0,0.00054794,120]
[322535768,1713041236034,-500.0,0.00054794,120]
[322535769,1713041236059,-500.0,0.00054794,120]
[322535770,1713041236083,-500.0,0.00054794,120]
[322535771,1713041236108,-500.0,0.00054794,120]
[322535772,1713041236135,-500.0,0.00054794,60]
[322535773,1713041236159,-500.0,0.00054794,120]
[322535774,1713041236185,-500.0,0.00054794,120]
[322535775,1713041236211,-373.7590933,0.00054794,120]
[322535776,1713041236242,-852.48,0.00054794,120]
[322535777,1713041236266,-500.0,0.00054794,120]
[322535778,1713041236291,-500.0,0.00054794,120]
[322535779,1713041236315,-500.0,0.00054794,120]
[322535780,1713041236338,-163.862063,0.00056533,120]
[322535781,1713041236362,-760.0,0.00076,120]
[322535782,1713041236387,-500.0,0.00076711,120]
[322535783,1713041236412,-500.0,0.00076711,120]
[322535784,1713041236437,-500.0,0.00076711,120]
[322535785,1713041236462,-500.0,0.00076711,120]
[322535786,1713041236491,-500.0,0.00076711,120]
[322535787,1713041236517,-500.0,0.00076711,120]
[322535788,1713041236543,-500.0,0.00076711,120]
[322535789,1713041236569,-500.0,0.00076712,120]
[322535790,1713041236593,-500.0,0.00076712,120]
[322535791,1713041236623,-500.0,0.00076712,120]
[322535792,1713041236651,-500.0,0.00076712,120]
[322535793,1713041236676,-500.0,0.00076712,120]
[322535794,1713041236703,-500.0,0.00076712,120]
[322535795,1713041236729,-500.0,0.00076712,120]
[322535796,1713041236762,-569.56,0.00076712,120]
[322535797,1713041236789,-500.0,0.00076712,120]
[322535798,1713041236816,-2559.02,0.00076712,120]
[322535799,1713041236845,-500.0,0.00076712,120]
[322535800,1713041236870,-504.55475943,0.00076712,120]
[322535801,1713041236895,-509.72,0.00076712,120]
[322535802,1713041236919,-500.0,0.00076712,21]
[322535803,1713041236944,-500.0,0.00076712,120]
[322535804,1713041236969,-500.0,0.00076712,120]
[322535805,1713041236998,-500.0,0.00076712,120]
[322535806,1713041237024,-500.0,0.00076712,120]
[322535807,1713041237049,-500.0,0.00076712,120]
[322535808,1713041237075,-500.0,0.00076712,120]
[322535809,1713041237099,-500.0,0.00076712,120]
[322535810,1713041237123,-500.0,0.00076712,120]
[322535811,1713041237149,-724.16,0.00076712,120]
[322535812,1713041237285,-205.26039736,0.00076712,120]
[322535813,1713041237312,-500.0,0.00076712,120]
[322535814,1713041237340,-500.0,0.00076712,120]
[322535815,1713041237368,-500.0,0.00076712,120]
[322535816,1713041237395,-500.0,0.00076712,120]
[322535817,1713041237420,-500.0,0.00076712,120]
[322535818,1713041237445,-500.0,0.00076712,120]
[322535819,1713041237470,-500.0,0.00076712,120]
[322535820,1713041237502,-500.0,0.00076712,120]
[322535821,1713041237527,-500.0,0.00076712,120]
[322535822,1713041237552,-500.0,0.00076712,120]
[322535823,1713041237578,-500.0,0.00076712,120]
[322535824,1713041237604,-500.0,0.00076712,60]
[322535825,1713041237630,-500.0,0.00076712,120]
[322535826,1713041237655,-500.0,0.00076712,120]
[322535827,1713041237684,-852.48,0.00076712,120]
[322535828,1713041237711,-500.0,0.00076712,120]
[322535829,1713041237744,-500.0,0.00076712,120]
[322535830,1713041237773,-910.6108936,0.00080906,2]
[322535831,1713041237800,-1077.40140562,0.00080906,7]
[322535832,1713041237825,-2355.80118222,0.00080908,60]
[322535833,1713041237851,-1083.07652586,0.00085808,30]
[322535834,1713041237878,-157.694231,0.0008828,120]
[322535835,1713041237902,-200.0,0.00089418,120]
[322535836,1713041237926,-1000.0,0.0009,120]
[322535837,1713041237951,-1000.0,0.0009,120]
[322535838,1713041237974,-200.0,0.00094406,120]
[322535839,1713041238004,-500.0,0.0009555,120]
[322535840,1713041238028,-500.0,0.00095551,120]
[322535841,1713041238055,-266.88683774,0.0009853,2]
[322535842,1713041238081,-428.65556747,0.00098626,30]
[322535843,1713041238106,-500.0,0.00098626,120]
[322535844,1713041238132,-500.0,0.00098626,120]
[322535845,1713041238157,-500.0,0.00098626,120]
[322535846,1713041238182,-500.0,0.00098626,120]
[322535847,1713041238205,-500.0,0.00098626,120]
[322535848,1713041238228,-500.0,0.00098626,120]
[322535849,1713041238258,-586.53,0.00098626,120]
[322535850,1713041238283,-500.0,0.00098626,120]
[322535851,1713041238307,-500.0,0.00098626,120]
[322535852,1713041238331,-3355.65064306,0.00098628,120]
[322535853,1713041238356,-500.0,0.00098628,120]
[322535854,1713041238379,-262.76950242,0.00098628,4]
[322535855,1713041238406,-500.0,0.00098628,120]
[322535856,1713041238431,-500.0,0.00098628,120]
[322535857,1713041238456,-500.0,0.00098628,120]
[322535858,1713041238482,-500.0,0.00098628,120]
[322535859,1713041238511,-500.0,0.00098628,120]
[322535860,1713041238535,-500.0,0.00098628,120]
[322535861,1713041238560,-500.0,0.00098628,120]
[322535862,1713041238584,-500.0,0.00098628,120]
[322535863,1713041238610,-500.0,0.00098628,120]
[322535864,1713041238640,-565.25,0.00098628,120]
[322535865,1713041238666,-500.0,0.00098628,120]
[322535866,1713041238692,-500.0,0.00098628,120]
[322535867,1713041238717,-536.23,0.00098629,2]
[322535868,1713041238746,-500.0,0.00098629,120]
[322535869,1713041238772,-500.0,0.00098629,120]
[322535870,1713041238799,-500.0,0.00098629,120]
[322535871,1713041238824,-500.0,0.00098629,120]
[322535872,1713041238849,-500.0,0.00098629,120]
[322535873,1713041238875,-500.0,0.00098629,120]
[322535874,1713041238899,-500.0,0.00098629,120]
[322535875,1713041238924,-500.0,0.00098629,120]
[322535876,1713041238948,-500.0,0.00098629,120]
[322535877,1713041238973,-500.0,0.00098629,120]
[322535878,1713041239002,-500.0,0.00098629,120]
[322535879,1713041239027,-2235.80338211,0.00098629,120]
[322535880,1713041239052,-687.61,0.00098629,120]
[322535881,1713041239076,-501.15222337,0.0009863,120]
[322535882,1713041239102,-500.0,0.0009863,120]
[322535883,1713041239127,-500.0,0.0009863,120]
[322535884,1713041239151,-502.95760247,0.0009863,120]
[322535885,1713041239178,-500.0,0.0009863,120]
[322535886,1713041239203,-566.09024181,0.0009863,120]
[322535887,1713041239227,-500.0,0.0009863,120]
[322535888,1713041239257,-500.0,0.0009863,120]
[322535889,1713041239282,-500.0,0.0009863,120]
[322535890,1713041239307,-500.0,0.0009863,120]
[322535891,1713041239331,-505.95434018,0.0009863,120]
[322535892,1713041239356,-500.0,0.0009863,120]
[322535893,1713041239381,-500.0,0.0009863,120]
[322535894,1713041239406,-273.53562206,0.0009863,120]
[322535895,1713041239431,-300.0,0.0009863,7]
[322535896,1713041239458,-500.0,0.0009863,120]
[322535897,1713041239493,-564.29163547,0.0009863,120]
[322535898,1713041239519,-501.98167046,0.0009863,120]
[322535899,1713041239544,-500.0,0.0009863,120]
[322535900,1713041239569,-500.0,0.0009863,120]
[322535901,1713041239594,-500.0,0.0009863,120]
[322535902,1713041239621,-500.0,0.0009863,120]